Cogmind - Beta 14 @@@ ROGUE MODE // 2024.12.21 @ 13:39:28 Player: abnormality Result: Destroyed by G-47 Trooper with Particle Gun Performance ------------- Evolutions (0) 0 Regions Visited (1) 200 Robots Destroyed (19) 95 Value Destroyed (420) 420 Prototype IDs (0) 0 Alien Tech Used (0) 0 Bonus (0) 0 TOTAL SCORE: 715 Bonus ------- None Cogmind --------- Core Integrity 0/250 Matter 295/300 Energy 64/100 System Corruption 0% Temperature Cool (54) Movement Walking (120) Location -10/Materials Parts ------- > --- POWER (1) -------- (None) > --- PROPULSION (2) --- Aluminum Leg > --- UTILITY (2) ------ Small Storage Unit Sensor Array > --- WEAPON (2) ------- Medium Laser Small Laser > --- INVENTORY (8) ---- Aluminum Leg Aluminum Leg Seismic Detector Peak State ------------ > --- POWER ------------ Ion Engine > --- PROPULSION ------- Aluminum Leg Aluminum Leg > --- UTILITY ---------- Small Storage Unit Seismic Detector > --- WEAPON ----------- Medium Laser Assault Rifle > --- INVENTORY -------- Light Ion Engine Small Laser [Rating: 7] Favorites ----------- Power Ion Engine Engine Ion Engine Propulsion Aluminum Leg Leg Aluminum Leg Utility Small Storage Unit Device Seismic Detector Storage Small Storage Unit Weapon Beam Cannon Energy Gun Medium Laser Energy Cannon Beam Cannon Ballistic Gun Assault Rifle Launcher Grenade Launcher Build | -11 -10 ------- Run | Yrd Mat Slots Evolved . | . . Power . | . . Propulsion . | . . Utility . | . . Weapon . | . . Parts Attached 15 | 7 8 Power 2 | 1 1 Engine 2 | 1 1 Core . | . . Reactor . | . . Propulsion 3 | 2 1 Treads . | . . Leg 3 | 2 1 Wheel . | . . Hover . | . . Flight . | . . Utility 3 | 2 1 Device 2 | 1 1 Storage 1 | 1 . Processor . | . . Hackware . | . . Protection . | . . Artifact . | . . Weapon 7 | 2 5 Energy Gun 3 | 1 2 Energy Cannon 1 | . 1 Ballistic Gun 2 | 1 1 Ballistic Cannon . | . . Launcher 1 | . 1 Special Weapon . | . . Impact Weapon . | . . Slashing Weapon . | . . Piercing Weapon . | . . Special Melee Weapon . | . . Unidentified Prototypes . | . . Parts Lost 6 | . 6 Power 2 | . 2 Propulsion 2 | . 2 Utility . | . . Weapon 2 | . 2 Highest Loss Streak 4 | . 4 To Critical Strikes . | . . Average Slot Usage (%) 91 | . 91 Engine 10 | . 10 Leg 25 | . 25 Device 14 | . 14 Storage 14 | . 14 Energy Gun 3 | . 3 Energy Cannon 9 | . 9 Ballistic Gun 7 | . 7 Launcher 5 | . 5 Peak Build Rating 7 | 7 7 Average Rating 6 | 5 6 On Entrance 3 | . 7 Naked Turns . | . . Heaviest Build 17 | 15 17 Greatest Support 20 | 20 20 Greatest Overweight (x) . | . . Average Overweight (x) . | . . Largest Inventory Capacity 8 | 8 8 Average Capacity 7 | 7 8 Most Carried 7 | 4 7 Average Carried 4 | 1 4 Final Capacity 8 | 8 8 Final Carried 3 | 2 3 Class Distribution -------------------- 100% | Mutant Dominant Class ---------------- Mutant | -10/Materials Resources | -11 -10 ----------- Run | Yrd Mat Matter Collected 501 | 288 213 Remotely . | . . Salvage Created 525 | 140 385 Parts 33 | 8 25 Haulers Intercepted 1 | . 1 Recyclers Shooed . | . . Parts Field Recycled . | . . Retrieved Matter . | . . Parts Self-Destructed . | . . Prevented . | . . Kills | -11 -10 ------- Run | Yrd Mat Combat Hostiles Destroyed 12 | . 12 Guns 2 | . 2 Cannons 2 | . 2 AOE 8 | . 8 Classes Destroyed 8 | 2 6 Worker 1 | . 1 Builder 1 | . 1 Tunneler 2 | 2 . Hauler 1 | . 1 Recycler 1 | 1 . Watcher 1 | . 1 Swarmer 3 | . 3 Grunt 9 | . 9 Best Kill Streak 5 | 3 5 Combat Bots Only 4 | . 4 Max Kills in Single Turn 3 | 1 3 Gunslinging . | . . Exploded 3 | . 3 Melee . | . . Uniques/NPCs Destroyed . | . . Combat | -11 -10 -------- Run | Yrd Mat Hostile Shots Fired 92 | . 92 Missed 20 | . 20 Damage Taken 867 | . 867 Core 261 | . 261 Absorbed by Shields . | . . Core Remaining (%) 100 | 100 . Volleys Fired 45 | 6 39 Largest 2 | 2 2 Hottest 90 | 70 90 Shots Fired 78 | 12 66 Gun 46 | 12 34 Cannon 23 | . 23 Launcher 9 | . 9 Special . | . . Kinetic 32 | 6 26 Thermal 37 | 6 31 Explosive 9 | . 9 Electromagnetic . | . . Robot Hit Streak 5 | 5 5 Robot Miss Streak 5 | 1 5 Penetration Max . | . . Secondary Targets . | . . Shots Hit Robots 35 | 8 27 Core Hits 30 | 4 26 Critical Kills . | . . Critical Parts Destroyed . | . . Critical Strikes 3 | 2 1 Burn 3 | 2 1 Melee Attacks . | . . Impact . | . . Slashing . | . . Piercing . | . . Sneak Attacks . | . . Combat Hostiles . | . . Follow-up Attacks . | . . Damage Inflicted 1220 | 117 1103 Guns 314 | 117 197 Cannons 157 | . 157 Explosions 749 | . 749 Melee . | . . Ramming . | . . Kinetic 215 | 53 162 Thermal 256 | 64 192 Explosive 574 | . 574 Electromagnetic 175 | . 175 Impact . | . . Slashing . | . . Piercing . | . . Highest Corruption . | . . Average Corruption . | . . Corruption Purged . | . . Corruption Blocked . | . . Overload Shots . | . . Overflow Damage . | . . Projectiles . | . . Explosions . | . . Melee . | . . Knockbacks . | . . Impact . | . . Kinetic . | . . Secondary . | . . Self-Inflicted Damage 105 | . 105 Shots 4 | . 4 Rammed . | . . Targets Rammed . | . . Kicked . | . . Crushed . | . . Highest Temperature 220 | 27 220 Average Temperature 59 | 11 66 Received Heat Transfer 384 | . 384 Siege Activations . | . . Robots Corrupted . | . . Combat Hostiles . | . . Parts Fried . | . . Impact Corruptions . | . . Robots Melted . | . . Combat Hostiles . | . . Parts Melted . | . . Heat Transferred 827 | 333 494 Parts Sabotaged . | . . Parts Stolen . | . . Parts Stripped . | . . Power Chain Reactions . | . . Alert | -11 -10 ------- Run | Yrd Mat Peak Influence 236 | 15 236 Initial 9 | . 9 Average 93 | 6 103 Maximum Alert Level 1 | . 1 Low Security (%) 87 | 100 86 Level 1 12 | . 13 Level 2 . | . . Level 3 . | . . Level 4 . | . . Level 5 . | . . High Security . | . . Max Security . | . . Squads Dispatched 3 | . 3 Investigation 2 | . 2 Extermination . | . . Reinforcement 1 | . 1 Assault . | . . Garrison . | . . Intercept . | . . Searches Triggered . | . . Construction Impeded . | . . Haulers Reinforced . | . . Active Scanning Responses . | . . Cargo Convoy Interrupts . | . . Stealth | -11 -10 --------- Run | Yrd Mat Distress Signals 1 | . 1 Communications Jammed . | . . Distress Signals . | . . Times Spotted 17 | . 17 Peak Tracking Total 4 | . 4 Tactical Retreats 1 | . 1 Traps | -11 -10 ------- Run | Yrd Mat Traps Triggered 1 | . 1 Indirectly . | . . Trap Hack Attempts . | . . Triggered . | . . Disarmed . | . . Reprogrammed . | . . Reused . | . . Traps Extracted . | . . Installed . | . . Triggered . | . . Machines | -11 -10 ---------- Run | Yrd Mat Machines Disabled 4 | . 4 Max in Single Turn 1 | . 1 Machines Repaired . | . . Machines Dismantled . | . . Machines Sabotaged . | . . Overloaded Fab Kills . | . . Hacking | -11 -10 --------- Run | Yrd Mat Machines Accessed 2 | . 2 Terminals 1 | . 1 Fabricators . | . . Repair Stations . | . . Recycling Units 1 | . 1 Scanalyzers . | . . Garrison Access . | . . Total Hacks 8 | . 8 Successful 6 | . 6 Failed 2 | . 2 Catastrophic . | . . Database Lockouts . | . . Manual . | . . Terminals 2 | . 2 Fabricators . | . . Repair Stations . | . . Recycling Units 6 | . 6 Scanalyzers . | . . Garrison Access . | . . Terminal Hacks 2 | . 2 Branch Access Points 1 | . 1 Alert Level 1 | . 1 Fabricator Hacks . | . . Repair Station Hacks . | . . Recycling Unit Hacks 4 | . 4 Recycle Component 2 | . 2 Process 1 | . 1 Retrieve Matter 1 | . 1 Scanalyzer . | . . Garrison Access Hacks . | . . Unauthorized Hacks . | . . Terminals . | . . Fabricators . | . . Repair Stations . | . . Recycling Units . | . . Scanalyzers . | . . Garrison Access . | . . Data Cores Recovered . | . . Used . | . . Hacking Detections 2 | . 2 Full Trace Events 1 | . 1 Feedback Events . | . . Feedback Blocked . | . . Robot Schematics Acquired . | . . Robots Built . | . . Authchips . | . . Time . | . . Total Robot Build Rating . | . . Part Schematics Acquired . | . . Parts Built . | . . Authchips . | . . Time . | . . Total Part Build Rating . | . . Parts Repaired . | . . Time . | . . Parts Recycled 2 | . 2 Recycled Matter 48 | . 48 Retrieved Matter 48 | . 48 Retrieved Components . | . . Parts Scanalyzed . | . . Part Schematics Acquired . | . . Parts Damaged . | . . Bothacking | -11 -10 ------------ Run | Yrd Mat Used RIF Installer . | . . Robots Hacked . | . . Non-combat . | . . Combat . | . . Robot Hacks Applied . | . . Relay Couplers Released . | . . Fabnet Peak Effective % . | . . Robots Rewired . | . . Allies Hacked . | . . Hacks Repelled . | . . Allies | -11 -10 -------- Run | Yrd Mat Total Allies . | . . Largest Group . | . . Highest-Rated Group . | . . Highest-Rated Ally . | . . Total Orders . | . . Ally Attacks . | . . Total Damage . | . . Kills . | . . Allies Corrupted . | . . Allies Melted . | . . Intel | -11 -10 ------- Run | Yrd Mat Robot Analysis Total . | . . Derelict Logs Recovered . | . . Drone Launches . | . . Drone Recoveries . | . . Exploration | -11 -10 ------------- Run | Yrd Mat Turns Passed 833 | 85 748 Spaces Moved 405 | 50 355 Core 12 | 12 . Treads . | . . Legs 393 | 38 355 Wheels . | . . Hover . | . . Flight . | . . Fastest Speed 50 | 50 120 Average Speed 117 | 103 120 Slowest Speed 120 | 120 120 Overloaded Moves . | . . Propulsion Burnouts . | . . Robots Hopped . | . . Cave-ins Triggered . | . . Exploration Rate (%) 14 | 4 24 Regions Visited 1 Branch Regions . Pre-discovered Areas . | . . Known Exits Taken . | . . Unknown Exits Taken 1 | 1 . Scrap Searched . | . . Spaces Dug . | . . Terrain Destroyed 38 | . 38 Melee . | . . Projectile . | . . AOE 38 | . 38 Terrain Rammed . | . . Walls Destroyed . | . . Machines Disabled . | . . Actions | -11 -10 --------- Run | Yrd Mat Total 680 | 71 609 Wait 200 | . 200 Move 404 | 49 355 Hop . | . . Pick Up 16 | 9 7 Fast Attach . | . . Attach 11 | 7 4 Detach . | . . Swap 4 | . 4 Drop . | . . Fire 45 | 6 39 Melee . | . . Ram . | . . Kick . | . . Crush . | . . Escape Stasis . | . . Rewire . | . . Trap . | . . Miscellaneous . | . . Route ------- -11/Scrapyard -10/Materials (discovered 1 exit: Min) History --------- Turn | Location | Event 38 | -11/Scrapyard | Discovered new exit (range 14) 86 | -11/Scrapyard | Entered Materials 311 | -10/Materials | Build established: Mutant 507 | -10/Materials | Identified exit to Mines 665 | -10/Materials | Core integrity fell below 50% 705 | -10/Materials | Lost 4 parts (2p1n1w) 782 | -10/Materials | Core integrity fell below 20% 834 | -10/Materials | Destroyed by G-47 Trooper with Particle Gun Last Messages --------------- 00672_ G-34 Mercenary destroyed. 00672_ Aluminum Leg destroyed. 00674_ Lgt. Ion Engine destroyed. 00676_ G-34 Mercenary destroyed. 00677_ R-06 Scavenger collects Corrupted Aluminum Leg. 00681_ U-05 Engineer builds a Door. 00683_ Acquired 14 matter. 00683_ U-05 Engineer lays Concrete. 00683_ R-06 Scavenger collects Corrupted Heat Sink. 00684_ U-05 Engineer lays Concrete. 00688_ R-06 Scavenger collects Corrupted Ion Engine. 00689_ U-05 Engineer lays Concrete. 00691_ R-06 Scavenger collects Corrupted Heat Sink. 00692_ U-05 Engineer lays Concrete. 00787_ Assault Rifle destroyed. 00793_ G-34 Mercenary suffers critical hit (Burn). 00793_ G-34 Mercenary destroyed. 00801_ Acquired 27 matter. 00804_ Acquired Aluminum Leg. 00832_ Aluminum Leg destroyed. Map ----- +----------------------------------------------------+ | ??????# #????????????????????? | | ??????# # #???????????????????? | | ??????# ##???????????????????? | | ??????### #### ####????????????????????? | | ????????### #??###???????????????????????? | | ??????????# #????????????????????????????? | | ??????????# #############????????????????? | | ?????###### ?????????? | | ?????# ##### ######????????????????? | | ?????# #### #???# #?????????????????????? | | ?????# #??#####???# #?????????????????????? | | ?????# #??????????# #?????????????????????? | | ?????# #??????????# #?????????????????????? | | ?????# #??????????# #?????????????????????? | | ?????# #????####### #?????????????????????? | | ######+##???# # #?????????????????????? | | # #???# # #?????????????????????? | | # T ##### # #?????????????????????? | | # + # # #?????????????????????? | | # """"% ## + # #?????????????????????? | | # """"" ## # %+ g#?????????????????????? | | # """"" ## # ?#g #?????????????????????? | | # """"" ## ####### ##????????????????????? | | # """""%# ##### #????????????????????? | | ? """"" + #????????????????????? | | ? """"" # @ +????????????????????? | | # # ##### # ???????????????????? | | ?######### ########### ??????????????????? | | ??# # # #???? "?????????????????? | | ??# + %+ %%#????? ????????????????? | | ??# % # #% %%#??????"????????????????? | | ??# "Y" # #! #??????##???????????????? | | ??#/ """ #### #???????????????????????? | | ??# #??# #???????????????????????? | | ??########??########???????????????????????? | | ???????????????????????????????????????????? | | ???????????????????????????????????????????? | | | | | | | | | | | | | | | | | | | | | | | | | | | +----------------------------------------------------+ Best States ------------- Heat Dissipation 25 Energy Generation 10 Energy Capacity 250 Matter Stores 300 Matter Capacity 300 Sight Range 16 Robot Scan Range 14 Terrain Scan Density 10 Evasion (%) 55 Item Schematics ----------------- None Robot Schematics ------------------ None Fabricated ------------ Nothing Alien Tech Used ----------------- None Achievements -------------- None Challenges ------------ None Game ------ Seed ImprovedBladeChronowheel Manual? 0 Play Time 00:12:10 Cumulative 12.1 hours Start 2024.12.21 @ 13:31:57 End 2024.12.21 @ 13:39:28 Sessions 1 Manual Loads 0 Difficulty Rogue Special Mode None Game No. 64 Rogue 64 Adventurer 0 Explorer 0 Win Type - Total 0 Types 0/0/0/0/0/0/0/0/0 Lore% 11 Gallery% 16 Achievement% 20 Wizard Run 0 Options --------- Layout 0 ASCII 0 Keyboard 0 Movement Mouse Keybinds 0 Fullscreen 1 Font 18/SmallcapsGlow Map View 38x25 Zoom Use 98% Tactical HUD 1 Map Filters NONE Filters NONE Steam 1 RUN: 489a54a5-559a-43a3-8d7c-75c3100220a6